lending/lending_fUSD_20250408
["ID","MTS","AMOUNT","RATE_DAILY","PERIOD"]
[357551975,1744135920634,-537.7,0.00059452,120]
[357551976,1744135920643,-524.83,0.00059452,120]
[357551977,1744135920652,-500.0,0.00059452,120]
[357551978,1744135920664,-1644.68,0.00059452,120]
[357551979,1744135920673,-812.56,0.00059452,120]
[357551980,1744135920684,-884.4,0.00059452,120]
[357551981,1744135920693,-500.0,0.00059452,120]
[357551982,1744135920703,-727.96,0.00059452,120]
[357551983,1744135920718,-500.0,0.00059452,120]
[357551984,1744135920728,-1273.1,0.00059452,120]
[357551985,1744135920737,-500.0,0.00059452,120]
[357551986,1744135920747,-1048.09,0.00059452,120]
[357551987,1744135920757,-500.0,0.00059452,120]
[357551988,1744135920767,-965.74,0.00059452,120]
[357551989,1744135920778,-500.0,0.00059452,120]
[357551990,1744135920787,-554.97,0.00059452,120]
[357551991,1744135920797,-500.0,0.00059452,120]
[357551992,1744135920810,-794.37,0.00059452,120]
[357551993,1744135920820,-500.0,0.00059452,120]
[357551994,1744135920830,-500.0,0.00059452,120]
[357551995,1744135920840,-635.52,0.00059452,120]
[357551996,1744135920850,-530.29,0.00059452,120]
[357551997,1744135920859,-500.0,0.00059452,120]
[357551998,1744135920869,-1026.05,0.00059452,120]
[357551999,1744135920879,-500.0,0.00059452,120]
[357552000,1744135920888,-500.0,0.00059452,120]
[357552001,1744135920899,-500.0,0.00059452,120]
[357552002,1744135920908,-541.89,0.00059452,120]
[357552003,1744135920918,-500.0,0.00059452,120]
[357552004,1744135920928,-500.0,0.00059452,120]
[357552005,1744135920938,-500.0,0.00059452,120]
[357552006,1744135920948,-913.6,0.00059452,120]
[357552007,1744135920957,-581.87,0.00059452,120]
[357552008,1744135920967,-500.0,0.00059452,120]
[357552009,1744135920977,-640.64,0.00059452,30]
[357552010,1744135920986,-500.0,0.00059452,120]
[357552011,1744135920995,-541.35,0.00059452,120]
[357552012,1744135921005,-500.0,0.00059452,120]
[357552013,1744135921015,-500.0,0.00059452,120]
[357552014,1744135921024,-500.0,0.00059452,120]
[357552015,1744135921034,-985.93,0.00059452,120]
[357552016,1744135921043,-531.64,0.00059452,120]
[357552017,1744135921053,-500.0,0.00059452,120]
[357552018,1744135921063,-1206.08,0.00059452,120]
[357552019,1744135921072,-500.0,0.00059452,120]
[357552020,1744135921083,-500.0,0.00059452,120]
[357552021,1744135921094,-500.0,0.00059452,120]
[357552022,1744135921104,-500.0,0.00059452,120]
[357552023,1744135921114,-706.13,0.00059452,120]
[357552024,1744135921125,-500.0,0.00059452,120]
[357552025,1744135921135,-500.0,0.00059452,120]
[357552026,1744135921146,-500.0,0.00059452,120]
[357552027,1744135921156,-1079.35,0.00059452,120]
[357552028,1744135921166,-409.51593139,0.00059452,120]
[357552029,1744135921177,-500.0,0.00059452,120]
[357552030,1744135921186,-500.0,0.00059452,120]
[357552031,1744135921196,-726.46,0.00059452,120]
[357552032,1744135921206,-615.19,0.00059452,120]
[357552033,1744135921215,-1342.18,0.00059452,120]
[357552034,1744135921225,-687.95,0.00059452,120]
[357552035,1744135921235,-646.6,0.00059452,120]
[357552036,1744135921245,-547.83,0.00059452,120]
[357552037,1744135921256,-500.0,0.00059452,120]
[357552038,1744135921266,-513.92,0.00059452,120]
[357552039,1744135921276,-396.28,0.00059452,120]
[357552040,1744135921286,-473.95522445,0.00059452,120]
[357552041,1744135921296,-500.0,0.00059452,7]
[357552042,1744135921307,-500.0,0.00059452,120]
[357552043,1744135921318,-3011.86,0.00059452,120]
[357552044,1744135921328,-711.83,0.00059452,120]
[357552045,1744135921339,-500.0,0.00059452,120]
[357552046,1744135921349,-500.0,0.00059452,120]
[357552047,1744135921360,-500.0,0.00059452,120]
[357552048,1744135921371,-853.97,0.00059452,120]
[357552049,1744135921381,-500.0,0.00059452,120]
[357552050,1744135921392,-500.0,0.00059452,120]
[357552051,1744135921402,-627.5,0.00059452,120]
[357552052,1744135921413,-500.0,0.00059452,120]
[357552053,1744135921424,-500.0,0.00059452,120]
[357552054,1744135921436,-595.62,0.00059452,120]
[357552055,1744135921447,-500.0,0.00059452,120]
[357552056,1744135921457,-631.1,0.00059452,120]
[357552057,1744135921468,-500.0,0.00059452,120]
[357552058,1744135921478,-500.0,0.00059452,120]
[357552059,1744135921488,-500.0,0.00059452,120]
[357552060,1744135921500,-500.0,0.00059452,120]
[357552061,1744135921510,-500.0,0.00059452,120]
[357552062,1744135921521,-935.92,0.00059452,120]
[357552063,1744135921531,-299.88095888,0.00059452,120]
[357552064,1744135921541,-500.0,0.00059452,120]
[357552065,1744135921551,-500.0,0.00059452,120]
[357552066,1744135921564,-500.0,0.00059452,120]
[357552067,1744135921574,-500.0,0.00059452,120]
[357552068,1744135921585,-500.0,0.00059452,120]
[357552069,1744135921596,-882.81,0.00059452,120]
[357552070,1744135921607,-623.11,0.00059452,120]
[357552071,1744135921621,-594.34180239,0.00059452,120]
[357552072,1744135921632,-702.1,0.00059452,120]
[357552073,1744135921642,-594.48,0.00059452,120]
[357552074,1744135921652,-500.0,0.00059452,120]
[357552075,1744135921662,-1282.28,0.00059452,120]
[357552076,1744135921672,-500.0,0.00059452,120]
[357552077,1744135921683,-850.45,0.00059452,120]
[357552078,1744135921695,-540.94,0.00059452,120]
[357552079,1744135921705,-500.0,0.00059452,120]
[357552080,1744135921716,-660.48,0.00059452,120]
[357552081,1744135921727,-763.5,0.00059452,120]
[357552082,1744135921737,-768.76,0.00059452,120]
[357552083,1744135921747,-500.0,0.00059452,120]
[357552084,1744135921757,-828.56,0.00059452,120]
[357552085,1744135921767,-500.0,0.00059452,120]
[357552086,1744135921778,-500.0,0.00059452,120]
[357552087,1744135921788,-500.0,0.00059452,120]
[357552088,1744135921800,-516.93,0.00059452,120]
[357552089,1744135921812,-500.0,0.00059452,120]
[357552090,1744135921823,-959.29,0.00059452,120]
[357552091,1744135921833,-500.0,0.00059452,120]
[357552092,1744135921843,-500.0,0.00059452,120]
[357552093,1744135921853,-500.0,0.00059452,120]
[357552094,1744135921863,-500.0,0.00059452,120]
[357552095,1744135921873,-566.02,0.00059452,120]
[357552096,1744135921883,-714.7,0.00059452,120]
[357552097,1744135921894,-620.16,0.00059452,120]
[357552098,1744135921904,-683.43,0.00059452,120]
[357552099,1744135921914,-963.69,0.00059452,120]
[357552100,1744135921923,-528.14,0.00059452,120]
[357552101,1744135921933,-500.0,0.00059452,120]
[357552102,1744135921943,-500.0,0.00059452,120]
[357552103,1744135921953,-500.0,0.00059452,120]
[357552104,1744135921963,-524.59,0.00059452,120]
[357552105,1744135921973,-500.0,0.00059452,120]
[357552106,1744135921983,-606.16807574,0.00059452,120]
[357552107,1744135921993,-500.0,0.00059452,120]
[357552108,1744135922004,-1529.63,0.00059452,120]
[357552109,1744135922013,-524.58,0.00059452,120]
[357552110,1744135922024,-500.0,0.00059452,120]
[357552111,1744135922034,-737.15,0.00059452,120]
[357552112,1744135922044,-500.0,0.00059452,120]
[357552113,1744135922054,-500.0,0.00059452,120]
[357552114,1744135922064,-500.0,0.00059452,120]
[357552115,1744135922074,-577.69,0.00059452,120]
[357552116,1744135922083,-500.0,0.00059452,120]
[357552117,1744135922094,-505.48,0.00059452,120]
[357552118,1744135922103,-500.0,0.00059452,120]
[357552119,1744135922113,-500.0,0.00059452,120]
[357552120,1744135922123,-594.23,0.00059452,120]
[357552121,1744135922132,-500.0,0.00059452,120]
[357552122,1744135922143,-797.82,0.00059452,120]
[357552123,1744135922152,-1000.0,0.00059452,120]
[357552124,1744135922163,-500.0,0.00059452,120]
[357552125,1744135922172,-500.0,0.00059452,120]
[357552126,1744135922182,-500.0,0.00059452,120]
[357552127,1744135922192,-500.0,0.00059452,120]
[357552128,1744135922203,-570.96,0.00059452,120]
[357552129,1744135922212,-562.21108505,0.00059452,120]
[357552130,1744135922222,-554.84,0.00059452,120]
[357552131,1744135922231,-500.0,0.00059452,120]
[357552132,1744135922241,-1205.99,0.00059452,120]
[357552133,1744135922252,-737.46,0.00059452,120]
[357552134,1744135922262,-508.06,0.00059452,120]
[357552135,1744135922271,-500.0,0.00059452,120]
[357552136,1744135922281,-500.0,0.00059452,120]
[357552137,1744135922291,-830.9,0.00059452,120]
[357552138,1744135922301,-500.0,0.00059452,120]
[357552139,1744135922312,-593.3,0.00059452,120]
[357552140,1744135922323,-500.0,0.00059452,120]
[357552141,1744135922333,-568.34,0.00059452,120]
[357552142,1744135922343,-547.36,0.00059452,120]
[357552143,1744135922353,-500.0,0.00059452,120]
[357552144,1744135922363,-512.59,0.00059452,120]
[357552145,1744135922372,-500.0,0.00059452,120]
[357552146,1744135922382,-500.0,0.00059452,120]
[357552147,1744135922392,-600.21,0.00059452,120]
[357552148,1744135922402,-1080.18,0.00059452,120]
[357552149,1744135922412,-500.0,0.00059452,120]
[357552150,1744135922422,-500.0,0.00059452,120]
[357552151,1744135922432,-500.0,0.00059452,120]
[357552152,1744135922441,-500.0,0.00059452,120]
[357552153,1744135922451,-500.0,0.00059452,120]
[357552154,1744135922461,-565.33,0.00059452,120]
[357552155,1744135922471,-481.98289098,0.00059452,120]
[357552156,1744135922481,-1102.49,0.00059452,120]
[357552157,1744135922490,-627.68,0.00059452,120]
[357552158,1744135922500,-608.73949722,0.00059452,120]
[357552159,1744135922510,-500.0,0.00059452,120]
[357552160,1744135922520,-500.0,0.00059452,120]
[357552161,1744135922530,-500.0,0.00059452,120]
[357552162,1744135922540,-500.0,0.00059452,120]
[357552163,1744135922550,-651.86,0.00059452,120]
[357552164,1744135922561,-500.0,0.00059452,120]
[357552165,1744135922571,-615.97,0.00059452,3]
[357552166,1744135922581,-1008.75,0.00059452,120]
[357552167,1744135922591,-500.0,0.00059452,120]
[357552168,1744135922600,-548.5,0.00059452,120]
[357552169,1744135922610,-500.0,0.00059452,120]
[357552170,1744135922620,-630.49,0.00059452,120]
[357552171,1744135922633,-500.0,0.00059452,120]
[357552172,1744135922643,-1865.07,0.00059452,120]
[357552173,1744135922652,-557.72774339,0.00059452,120]
[357552174,1744135922663,-546.05,0.00059452,120]
[357552175,1744135922675,-511.68,0.00059452,120]
[357552176,1744135922685,-564.61,0.00059452,120]
[357552177,1744135922696,-500.0,0.00059452,120]
[357552178,1744135922706,-763.62,0.00059452,120]
[357552179,1744135922716,-500.0,0.00059452,120]
[357552180,1744135922726,-1679.19,0.00059452,120]
[357552181,1744135922735,-500.0,0.00059452,120]
[357552182,1744135922745,-500.0,0.00059452,120]
[357552183,1744135922755,-660.04,0.00059452,120]
[357552184,1744135922764,-500.0,0.00059452,120]
[357552185,1744135922774,-554.22,0.00059452,120]
[357552186,1744135922784,-722.4,0.00059452,120]
[357552187,1744135922795,-1478.16,0.00059452,120]
[357552188,1744135922804,-799.85,0.00059452,120]
[357552189,1744135922815,-780.29,0.00059452,120]
[357552190,1744135922826,-602.6,0.00059452,120]
[357552191,1744135922836,-646.7,0.00059452,120]
[357552192,1744135922846,-613.26,0.00059452,120]
[357552193,1744135922856,-500.0,0.00059452,120]
[357552194,1744135922866,-500.0,0.00059452,120]
[357552195,1744135923137,-500.0,0.00059452,120]
[357552196,1744135923156,-1227.77,0.00059452,120]
[357552197,1744135923166,-500.0,0.00059452,120]
[357552198,1744135923176,-1161.33,0.00059452,120]
[357552199,1744135923186,-639.27,0.00059452,120]
[357552200,1744135923196,-1012.34,0.00059452,120]
[357552201,1744135923205,-623.30952451,0.00059452,120]
[357552202,1744135923215,-1476.66,0.00059452,120]
[357552203,1744135923225,-500.0,0.00059452,120]
[357552204,1744135923235,-518.9,0.00059452,120]
[357552205,1744135923245,-500.0,0.00059452,120]
[357552206,1744135923254,-714.16,0.00059452,120]
[357552207,1744135923263,-500.0,0.00059452,120]
[357552208,1744135923273,-521.99,0.00059452,120]
[357552209,1744135923283,-707.18,0.00059452,120]
[357552210,1744135923293,-802.54,0.00059452,120]
[357552211,1744135923303,-500.0,0.00059452,120]
[357552212,1744135923314,-599.6,0.00059452,120]
[357552213,1744135923324,-704.21,0.00059452,120]
[357552214,1744135923335,-500.0,0.00059452,120]
[357552215,1744135923346,-500.0,0.00059452,120]
[357552216,1744135923356,-641.96,0.00059452,120]
[357552217,1744135923366,-500.0,0.00059452,120]
[357552218,1744135923377,-938.36,0.00059452,120]
[357552219,1744135923389,-836.32,0.00059452,120]
[357552220,1744135923399,-500.0,0.00059452,120]
[357552221,1744135923410,-500.0,0.00059452,120]
[357552222,1744135923421,-500.0,0.00059452,120]
[357552223,1744135923431,-1758.82,0.00059452,120]
[357552224,1744135923442,-1001.73,0.00059452,120]
[357552225,1744135923452,-888.6,0.00059452,120]
[357552226,1744135923463,-1712.57,0.00059452,120]
[357552227,1744135923473,-500.0,0.00059452,120]
[357552228,1744135923484,-669.22,0.00059452,120]
[357552229,1744135923495,-597.59,0.00059452,120]
[357552230,1744135923506,-500.0,0.00059452,120]
[357552231,1744135923517,-500.0,0.00059452,120]
[357552232,1744135923529,-808.98,0.00059452,120]
[357552233,1744135923540,-500.0,0.00059452,120]
[357552234,1744135923551,-878.06,0.00059452,120]
[357552235,1744135923567,-539.63,0.00059452,120]
[357552236,1744135923578,-500.0,0.00059452,120]
[357552237,1744135923590,-500.0,0.00059452,120]
[357552238,1744135923601,-500.0,0.00059452,120]
[357552239,1744135923612,-500.0,0.00059452,120]
[357552240,1744135923623,-990.1,0.00059452,120]
[357552241,1744135923638,-550.93,0.00059452,120]
[357552242,1744135923649,-500.0,0.00059452,120]
[357552243,1744135923660,-1032.36,0.00059452,120]
[357552244,1744135923671,-1056.72,0.00059452,120]
[357552245,1744135923682,-1303.1,0.00059452,120]
[357552246,1744135923693,-500.0,0.00059452,120]
[357552247,1744135923704,-545.23,0.00059452,120]
[357552248,1744135923715,-500.0,0.00059452,120]
[357552249,1744135923725,-500.0,0.00059452,120]
[357552250,1744135923735,-951.16,0.00059452,120]
[357552251,1744135923746,-500.0,0.00059452,120]
[357552252,1744135923756,-947.72,0.00059452,120]
[357552253,1744135923766,-808.53,0.00059452,120]
[357552254,1744135923776,-845.46,0.00059452,120]
[357552255,1744135923786,-500.0,0.00059452,120]
[357552256,1744135923798,-500.0,0.00059452,120]
[357552257,1744135923810,-500.0,0.00059452,120]
[357552258,1744135923821,-833.03,0.00059452,120]
[357552259,1744135923832,-2431.15,0.00059452,120]
[357552260,1744135923842,-1568.64,0.00059452,120]
[357552261,1744135923853,-975.29,0.00059452,120]
[357552262,1744135923864,-806.29,0.00059452,120]
[357552263,1744135923874,-500.0,0.00059452,120]
[357552264,1744135923884,-500.0,0.00059452,120]
[357552265,1744135923895,-500.0,0.00059452,120]
[357552266,1744135923905,-929.27,0.00059452,120]
[357552267,1744135923915,-1263.92,0.00059452,120]
[357552268,1744135923926,-500.0,0.00059452,120]
[357552269,1744135923936,-6744.61,0.00059452,2]
[357552270,1744135923947,-1745.31,0.00059452,120]
[357552271,1744135923957,-500.0,0.00059452,120]
[357552272,1744135923968,-784.78,0.00059452,120]
[357552273,1744135923978,-1297.19,0.00059452,120]
[357552274,1744135923988,-671.69,0.00059452,120]
[357552275,1744135923998,-844.34,0.00059452,120]
[357552276,1744135924008,-500.0,0.00059452,120]
[357552277,1744135924018,-736.0,0.00059452,120]
[357552278,1744135924028,-500.0,0.00059452,120]
[357552279,1744135924038,-596.17,0.00059452,120]
[357552280,1744135924047,-1049.21,0.00059452,120]
[357552281,1744135924057,-878.89,0.00059452,120]
[357552282,1744135924067,-500.0,0.00059452,120]
[357552283,1744135924077,-520.04,0.00059452,120]
[357552284,1744135924087,-581.28,0.00059452,120]
[357552285,1744135924096,-1004.09,0.00059452,120]
[357552286,1744135924106,-500.0,0.00059452,120]
[357552287,1744135924120,-280.39347069,0.00059452,120]
[357552288,1744135924131,-500.0,0.00059452,120]
[357552289,1744135924140,-1139.43,0.00059452,120]
[357552290,1744135924150,-769.0,0.00059452,120]
[357552291,1744135924160,-500.0,0.00059452,120]
[357552292,1744135924170,-691.29,0.00059452,120]
[357552293,1744135924180,-2188.68,0.00059452,120]
[357552294,1744135924190,-500.0,0.00059452,120]
[357552295,1744135924200,-226.31307133,0.00059452,120]
[357552296,1744135924209,-980.44,0.00059452,120]
[357552297,1744135924220,-547.15,0.00059452,120]
[357552298,1744135924231,-591.63,0.00059452,120]
[357552299,1744135924241,-707.17,0.00059452,120]
[357552300,1744135924252,-1356.13,0.00059452,120]
[357552301,1744135924262,-621.25,0.00059452,120]
[357552302,1744135924275,-1061.81,0.00059452,120]
[357552303,1744135924285,-671.05,0.00059452,120]
[357552304,1744135924295,-915.65,0.00059452,120]
[357552305,1744135924305,-991.48,0.00059452,120]
[357552306,1744135924316,-500.0,0.00059452,120]
[357552307,1744135924326,-771.41,0.00059452,120]
[357552308,1744135924336,-735.03,0.00059452,120]
[357552309,1744135924347,-500.0,0.00059452,120]
[357552310,1744135924358,-1539.5,0.00059452,120]
[357552311,1744135924368,-793.73,0.00059452,120]
[357552312,1744135924378,-2030.76,0.00059452,120]
[357552313,1744135924388,-645.49,0.00059452,120]
[357552314,1744135924399,-500.0,0.00059452,120]
[357552315,1744135924410,-500.0,0.00059452,120]
[357552316,1744135924421,-543.59,0.00059452,120]
[357552317,1744135924432,-1107.48,0.00059452,120]
[357552318,1744135924443,-500.0,0.00059452,120]
[357552319,1744135924454,-1122.05,0.00059452,120]
[357552320,1744135924464,-500.0,0.00059452,120]
[357552321,1744135924475,-500.0,0.00059452,8]
[357552322,1744135924486,-1784.68,0.00059452,120]
[357552323,1744135924496,-918.42,0.00059452,120]
[357552324,1744135924507,-500.0,0.00059452,120]
[357552325,1744135924517,-665.51,0.00059452,120]
[357552326,1744135924527,-578.6,0.00059452,120]
[357552327,1744135924536,-841.6,0.00059452,120]
[357552328,1744135924547,-1052.26,0.00059452,120]
[357552329,1744135924558,-528.16,0.00059452,120]
[357552330,1744135924569,-768.18,0.00059452,120]
[357552331,1744135924578,-1672.07,0.00059452,118]
[357552332,1744135924588,-1296.01,0.00059452,120]
[357552333,1744135924598,-1146.51,0.00059452,120]
[357552334,1744135924609,-500.0,0.00059452,120]
[357552335,1744135924620,-500.0,0.00059452,120]
[357552336,1744135924632,-803.86,0.00059452,120]
[357552337,1744135924641,-2828.98,0.00059452,120]
[357552338,1744135924651,-825.98,0.00059452,120]
[357552339,1744135924663,-500.0,0.00059452,120]
[357552340,1744135924673,-513.55,0.00059452,120]
[357552341,1744135924683,-1752.77,0.00059452,120]
[357552342,1744135924693,-500.0,0.00059452,120]
[357552343,1744135924705,-1469.03,0.00059452,120]
[357552344,1744135924716,-674.74,0.00059452,120]
[357552345,1744135924726,-734.29,0.00059452,120]
[357552346,1744135924735,-895.79,0.00059452,120]
[357552347,1744135924746,-931.13,0.00059452,120]
[357552348,1744135924755,-548.95,0.00059452,120]
[357552349,1744135924765,-1851.47,0.00059452,120]
[357552350,1744135924775,-500.0,0.00059452,120]
[357552351,1744135924784,-500.0,0.00059452,120]
[357552352,1744135924794,-500.0,0.00059452,120]
[357552353,1744135924804,-943.92,0.00059452,120]
[357552354,1744135924814,-2817.37,0.00059452,120]
[357552355,1744135924824,-643.01,0.00059452,120]
[357552356,1744135924834,-500.0,0.00059452,120]
[357552357,1744135924843,-535.91,0.00059452,120]
[357552358,1744135924853,-500.0,0.00059452,120]
[357552359,1744135924862,-1220.84,0.00059452,2]
[357552360,1744135924872,-2753.64,0.00059452,100]
[357552361,1744135924881,-500.0,0.00059452,120]
[357552362,1744135924890,-2064.77,0.00059452,120]
[357552363,1744135924900,-500.0,0.00059452,120]
[357552364,1744135924909,-500.0,0.00059452,120]
[357552365,1744135924919,-1736.05,0.00059452,120]
[357552366,1744135924928,-777.99,0.00059452,120]
[357552367,1744135924937,-2563.65,0.00059452,120]
[357552368,1744135924947,-500.0,0.00059452,120]
[357552369,1744135924956,-500.0,0.00059452,120]
[357552370,1744135924966,-1027.58,0.00059452,120]
[357552371,1744135924976,-751.14,0.00059452,120]
[357552372,1744135924985,-1287.88,0.00059452,120]
[357552373,1744135924995,-646.32,0.00059452,120]
[357552374,1744135925004,-500.0,0.00059452,120]
[357552375,1744135925014,-509.41,0.00059452,120]
[357552376,1744135925023,-500.0,0.00059452,120]
[357552377,1744135925032,-500.0,0.00059452,120]
[357552378,1744135925042,-500.0,0.00059452,120]
[357552379,1744135925051,-575.39,0.00059452,120]
[357552380,1744135925064,-2129.03,0.00059452,120]
[357552381,1744135925074,-1105.86,0.00059452,120]
[357552382,1744135925083,-1398.27,0.00059452,120]
[357552383,1744135925093,-500.0,0.00059452,120]
[357552384,1744135925102,-500.0,0.00059452,120]
[357552385,1744135925111,-500.0,0.00059452,120]
[357552386,1744135925120,-500.0,0.00059452,120]
[357552387,1744135925131,-500.0,0.00059452,120]
[357552388,1744135925141,-813.0,0.00059452,120]
[357552389,1744135925152,-500.0,0.00059452,120]
[357552390,1744135925162,-1231.16,0.00059452,120]
[357552391,1744135925171,-2129.78,0.00059452,120]
[357552392,1744135925181,-1852.62,0.00059452,120]
[357552393,1744135925191,-500.0,0.00059452,120]
[357552394,1744135925200,-817.54,0.00059452,120]
[357552395,1744135925209,-735.03,0.00059452,120]
[357552396,1744135925218,-500.0,0.00059452,120]
[357552397,1744135925226,-500.0,0.00059452,120]
[357552398,1744135925236,-538.82,0.00059452,120]
[357552399,1744135925245,-794.86,0.00059452,120]
[357552400,1744135925255,-500.0,0.00059452,120]
[357552401,1744135925264,-500.0,0.00059452,120]
[357552402,1744135925274,-589.43,0.00059452,120]
[357552403,1744135925283,-500.0,0.00059452,120]
[357552404,1744135925292,-500.0,0.00059452,120]
[357552405,1744135925302,-703.81,0.00059452,120]
[357552406,1744135925313,-1762.5,0.00059452,120]
[357552407,1744135925323,-500.0,0.00059452,120]
[357552408,1744135925331,-1383.32,0.00059452,120]
[357552409,1744135925341,-2000.0,0.00059491,8]
[357552410,1744135925351,-7899.0363174,0.00059643,2]
[357552411,1744135925360,-265.17158938,0.00059652,120]
[357552412,1744135925370,-689.11914121,0.00059652,120]
[357552413,1744135925379,-1663.12858184,0.00059652,120]
[357552414,1744135925389,-1460.93,0.00059684,120]
[357552415,1744135925398,-884.11,0.00059684,120]
[357552416,1744135925408,-3999.99999901,0.00059876,31]
[357552417,1744135925417,-879.70531513,0.00059885,120]
[357552418,1744135925427,-499.2,0.0005994,30]
[357552419,1744135925436,-150.0,0.00059949,120]
[357552420,1744135925446,-150.0,0.00059951,120]
[357552421,1744135925455,-3000.0,0.0005998,30]
[357552422,1744135925465,-1000.0,0.00059999,120]
[357552423,1744135925474,-20000.0,0.0006,120]
[357552424,1744135925484,-400.0,0.0006,120]
[357552425,1744135925494,-500.0,0.0006,120]
[357552426,1744135925503,-200.52747574,0.0006,120]
[357552427,1744135925512,-233.28919606,0.0006,120]
[357552428,1744135925522,-339.07872809,0.0006,120]
[357552429,1744135925532,-311.37240823,0.0006,120]
[357552430,1744135925541,-769.14,0.0006,120]
[357552431,1744135925637,-200.0,0.0006,120]
[357552432,1744135925647,-449.82940017,0.0006,30]
[357552433,1744135925657,-2409.09655781,0.0006,60]
[357552434,1744135925666,-508.02884107,0.0006,60]
[357552435,1744135925676,-205128.36170464,0.0006,7]
[357552436,1744135926201,-772.07,0.0006,7]
[357552437,1744135926228,-781.5493734,0.0006,7]
[357552438,1744135926245,-417.89133502,0.0005452,120]
[357552439,1744135926257,-316.15866498,0.0005452,120]
[357552440,1744135926266,-955.85407767,0.0006,7]
[357552441,1744135926279,-567.5000001,0.0006,7]
[357552442,1744135926290,-375.9636326,0.0006,7]
[357552443,1744135926301,-377.8065,0.0006,7]
[357552444,1744135926611,-258.30530926,0.00051944,31]
[357552445,1744135926623,-219.56964371,0.00052054,120]
[357552446,1744135926632,-141.89635041,0.00055342,120]
[357552447,1744135926668,-592.15364959,0.00055342,120]
[357552448,1744135926677,-504.18877138,0.00056164,120]
[357552449,1744135926689,-229.86122862,0.00056164,120]
[357552450,1744135926698,-734.05,0.00056986,120]
[357552451,1744135926708,-502.52050201,0.00057808,120]
[357552452,1744135926720,-231.52949799,0.00057808,120]
[357552453,1744135926729,-734.05,0.0005863,120]
[357552454,1744135926738,-734.05,0.00059452,120]
[357552455,1744135926747,-17706.51402165,0.0006,7]
[357552456,1744135926756,-250.0,0.0006,120]
[357552457,1744135926765,-8003.19,0.000601,2]
[357552458,1744135926775,-8003.18,0.000601,2]
[357552459,1744135926785,-265.17158938,0.00060128,120]
[357552460,1744135926794,-689.11914121,0.00060128,120]
[357552461,1744135926803,-94.68421655,0.00060128,120]
[357552462,1744135926965,-1568.44436529,0.00060128,120]
[357552463,1744135926974,-151.0,0.00060164,120]
[357552464,1744135926983,-150.0,0.00060272,120]
[357552465,1744135926992,-545.03,0.00060273,120]
[357552466,1744135927001,-500.0,0.00060273,120]
[357552467,1744135927010,-444.40115471,0.00060273,120]
[357552468,1744135927743,-684.15,0.00052054,120]
[357552469,1744135927753,-684.15,0.00052876,120]
[357552470,1744135927762,-684.15,0.00053698,120]
[357552471,1744135927771,-684.15,0.0005452,120]
[357552472,1744135927781,-684.15,0.00055342,120]
[357552473,1744135927790,-684.15,0.00056164,120]
[357552474,1744135927799,-684.15,0.00056986,120]